bitfinex-derivatives/quotes_BNBF0:USTF0_20250130
["timestamp","ask_amount","ask_price","bid_price","bid_amount"]
[1738275494657,1.10374015,678.9,678.37,0.80504603]
[1738275494855,1.10374015,678.9,678.38,0.80504603]
[1738275495052,1.10374015,678.9,678.39,0.80504603]
[1738275495255,1.10374015,678.9,678.4,0.80504603]
[1738275495456,1.10374015,678.9,678.41,0.80504603]
[1738275495659,1.10374015,678.9,678.42,0.80504603]
[1738275495959,1.10374015,678.9,678.43,0.80504603]
[1738275496158,1.10374015,678.9,678.44,0.80516924]
[1738275496357,1.10374015,678.9,678.22,0.996]
[1738275497760,1.10374015,678.9,678.23,0.80519454]
[1738275497955,1.10374015,678.9,678.22,0.996]
[1738275498259,1.10374015,678.9,678.23,0.8051952]
[1738275498653,1.10374015,678.9,678.24,0.80519804]
[1738275498855,1.10374015,678.9,678.25,0.80519804]
[1738275499056,1.10374015,678.9,678.22,0.996]
[1738275499057,1.10374015,678.9,678.26,0.80519804]
[1738275499255,1.10374015,678.9,678.27,0.80519804]
[1738275499457,1.10374015,678.9,678.28,0.80519804]
[1738275499654,1.10374015,678.9,678.29,0.80519804]
[1738275499857,1.10374015,678.9,678.3,0.80519804]
[1738275500058,1.10374015,678.9,678.31,0.80519804]
[1738275500256,1.10374015,678.9,678.32,0.80519804]
[1738275500457,1.10374015,678.9,678.33,0.80522599]
[1738275500660,1.10374015,678.9,678.34,0.80522599]
[1738275500856,1.10374015,678.9,678.22,0.996]
[1738275500857,1.10374015,678.9,678.35,0.80522599]
[1738275501061,2.24883439,679.61,678.22,0.996]
[1738275501062,1.10374015,678.88,678.36,0.80523961]
[1738275501261,1.10374015,678.88,678.37,0.80523961]
[1738275501464,1.10374015,678.88,678.38,0.80523961]
[1738275501664,1.10374015,678.88,678.39,0.80523961]
[1738275501865,1.10374015,678.88,678.4,0.80523961]
[1738275502065,1.10374015,678.88,678.41,0.80523961]
[1738275502265,1.10374015,678.88,678.42,0.80523961]
[1738275502465,1.10374015,678.88,678.22,0.996]
[1738275502466,1.10374015,678.88,678.43,0.80523961]
[1738275502669,1.10374015,678.88,678.44,0.80522058]
[1738275502868,1.10374015,678.88,678.45,0.80522058]
[1738275503069,1.10374015,678.88,678.46,0.80522058]
[1738275503369,1.10374015,678.88,678.47,0.80522058]
[1738275503569,1.10374015,678.88,678.48,0.80522058]
[1738275503770,1.10374015,678.88,678.49,0.80522058]
[1738275504071,1.10374015,678.88,678.5,0.80522058]
[1738275504269,1.10374015,678.88,678.51,0.80522058]
[1738275504573,1.10374015,678.87,678.52,0.80522058]
[1738275504772,1.10374015,678.87,678.53,0.80522058]
[1738275505070,1.10374015,678.87,678.54,0.80522058]
[1738275505371,1.10374015,678.87,678.55,0.80522058]
[1738275505670,1.10374015,678.87,678.56,0.80522058]
[1738275505969,1.10374015,678.87,678.57,0.80522058]
[1738275506169,1.10374015,678.87,678.58,0.80522058]
[1738275506367,1.10374015,678.87,678.59,0.80522058]
[1738275506565,1.10374015,678.87,678.6,0.80522058]
[1738275506768,1.10374015,678.87,678.61,0.80522058]
[1738275506969,1.10374015,678.87,678.62,0.80522058]
[1738275507168,1.10374015,678.87,678.63,0.80522058]
[1738275507366,1.10374015,678.87,678.64,0.80522058]
[1738275507564,1.10374015,678.87,678.65,0.80522058]
[1738275507768,1.10374015,678.87,678.66,0.80522058]
[1738275507968,1.10374015,678.87,678.67,0.80522058]
[1738275508168,1.10374015,678.87,678.68,0.80522058]
[1738275508370,1.10374015,678.87,678.69,0.80522058]
[1738275508567,1.10374015,678.87,678.22,0.996]
[1738275508568,1.10374015,678.87,678.7,0.80522058]
[1738275508766,1.10374015,678.87,678.71,0.80522058]
[1738275508971,1.10374015,678.87,678.72,0.80522058]
[1738275509167,1.10374015,678.87,678.73,0.80522058]
[1738275509367,1.10374015,678.87,678.74,0.80522058]
[1738275509567,1.10374015,678.87,678.75,0.80522058]
[1738275509772,1.10374015,678.77,678.76,0.80522058]
[1738275511273,1.10374015,678.77,678.76,0.80522615]
[1738275516380,1.10374015,678.79,678.76,0.80522615]
[1738275516580,1.10374015,678.79,678.77,0.80522615]
[1738275516777,1.10374015,678.79,678.78,0.80522615]
[1738275517479,1.10374015,678.79,678.78,0.80517496]
[1738275518086,1.10374015,678.79,678.78,0.80517897]
[1738275518982,1.10374015,678.85,678.78,0.80517897]
[1738275519186,1.10374015,678.85,678.79,0.80517897]
[1738275519388,1.10374015,678.85,678.8,0.80517897]
[1738275519586,1.10374015,678.85,678.81,0.80517897]
[1738275519781,1.10374015,678.85,678.82,0.80517897]
[1738275520087,1.10374015,678.85,678.83,0.80517897]
[1738275520281,1.10374015,678.85,678.84,0.80517897]
[1738275521592,1.1014699,679.03,678.84,0.80517897]
[1738275521791,0.27077306,679.02,678.85,0.80517897]
[1738275521991,0.27077306,679.02,678.86,0.80517897]
[1738275522190,0.27077306,679.02,678.87,0.80517897]
[1738275522391,0.27077306,679.02,678.88,0.80517897]
[1738275522591,0.27077306,679.02,678.68,0.804]
[1738275522791,0.27077306,679.02,678.69,0.80511836]
[1738275522992,0.27077306,679.02,678.68,0.804]
[1738275522993,0.27077306,679.02,678.7,0.80511836]
[1738275523292,0.27077306,679.02,678.71,0.80511836]
[1738275523495,0.27077306,679.02,678.72,0.80511836]
[1738275523689,0.27077306,679.02,678.73,0.80511836]
[1738275523885,0.27077306,679.02,678.74,0.80511836]
[1738275524089,0.27077306,679.02,678.75,0.80511836]
[1738275524291,0.27077306,679.02,678.76,0.80511836]
[1738275524491,0.27077306,679.02,678.77,0.80511836]
[1738275524792,0.27077306,679.02,678.78,0.80511836]
[1738275524993,0.27077306,679.02,678.79,0.80511836]
[1738275525194,0.27077306,679.02,678.8,0.80511836]
[1738275525386,0.27077306,679.02,678.81,0.80511836]
[1738275525591,0.27077306,679.02,678.82,0.80511836]
[1738275525790,0.27077306,679.02,678.83,0.80511836]
[1738275525992,0.27077306,679.02,678.84,0.80511836]
[1738275526191,0.27077306,679.02,678.85,0.80511836]
[1738275526391,0.27077306,679.02,678.86,0.80511836]
[1738275526592,0.29445106,679.23,678.87,0.80508783]
[1738275526593,0.27076948,679.01,678.87,0.80508783]
[1738275526896,0.27076948,679.0,678.88,0.80508783]
[1738275527090,0.27076948,679.0,678.68,0.804]
[1738275527091,0.27076948,679.05,678.89,0.80508783]
[1738275527293,0.27076948,679.05,678.68,0.804]
[1738275527494,0.27076948,679.05,678.69,0.80502522]
[1738275527692,0.27076948,679.05,678.7,0.80502522]
[1738275527892,0.27076948,679.05,678.71,0.80502522]
[1738275528099,0.27076948,679.05,678.72,0.80502522]
[1738275528297,0.27076948,679.05,678.73,0.80502522]
[1738275528498,0.27076948,679.05,678.74,0.80502522]
[1738275528799,0.27076948,679.05,678.75,0.80502522]
[1738275528992,0.27076948,679.05,678.76,0.80502522]
[1738275529198,0.27076948,679.05,678.68,0.804]
[1738275529199,0.27076948,679.05,678.77,0.80502522]
[1738275529394,0.27076948,679.05,678.78,0.80502522]
[1738275529592,0.27076948,679.05,678.79,0.80502522]
[1738275529797,0.27076948,679.05,678.8,0.80502522]
[1738275529997,0.27076948,679.05,678.81,0.80502522]
[1738275530293,0.27076948,679.05,678.82,0.80502522]
[1738275530498,0.27076948,679.05,678.83,0.80502522]
[1738275530698,1.1014699,679.02,678.84,0.80502522]
[1738275530899,0.27076948,679.01,678.85,0.80502522]
[1738275531095,0.27076948,679.01,678.86,0.80502522]
[1738275531294,0.27076948,679.01,678.87,0.80502522]
[1738275531499,0.27076948,679.01,678.88,0.80502522]
[1738275531800,0.27076948,679.01,678.68,0.804]
[1738275532000,0.27076948,679.01,678.69,0.80477971]
[1738275532199,0.27076948,679.01,678.7,0.80477971]
[1738275532402,0.27076948,679.01,678.71,0.80477971]
[1738275532701,0.27076948,679.01,678.72,0.80475704]
[1738275532901,0.27076948,679.01,678.73,0.80475704]
[1738275533102,0.27076948,679.01,678.74,0.80475704]
[1738275533304,0.27076948,679.01,678.75,0.80475704]
[1738275533496,1.10473362,678.82,678.76,0.80475704]
[1738275533700,1.10473362,678.82,678.77,0.80475704]
[1738275533900,1.10473362,678.82,678.78,0.80475704]
[1738275534099,1.10473362,678.82,678.79,0.80475704]
[1738275534401,1.10473362,678.82,678.02,1.10092913]
[1738275534402,1.10473362,678.82,678.8,0.80475704]
[1738275534704,1.10473362,678.82,678.81,0.80475704]
[1738275535302,1.10473362,678.82,678.81,0.80472302]
[1738275537405,1.1014699,678.97,678.81,0.80472302]
[1738275537605,0.27076604,678.96,678.82,0.80472302]
[1738275537806,0.27076604,678.96,678.83,0.80472302]
[1738275538007,0.27076604,678.96,678.84,0.80472302]
[1738275538208,0.27076604,678.96,678.85,0.80472302]
[1738275538406,0.27076604,678.96,678.86,0.80472302]
[1738275538706,0.27076604,678.96,678.87,0.80472302]
[1738275538907,0.27076604,678.96,678.73,0.786]
[1738275538908,0.27076604,678.96,678.88,0.80472302]
[1738275539107,0.27076604,678.96,678.73,0.786]
[1738275539307,0.27076604,678.96,678.74,0.80461468]
[1738275539506,0.27076604,678.96,678.75,0.80461468]
[1738275539702,0.27076604,678.96,678.76,0.80461468]
[1738275539902,0.27076604,678.96,678.77,0.80461468]
[1738275540106,0.27076604,678.96,678.78,0.80461468]
[1738275540301,0.27076604,678.96,678.79,0.80461468]
[1738275540507,0.27076604,678.96,678.73,0.786]
[1738275540708,0.27076604,678.96,678.74,0.80458578]
[1738275540909,0.27076604,678.96,678.75,0.80458578]
[1738275541107,0.27076604,678.96,678.76,0.80458578]
[1738275541303,0.27076604,678.96,678.77,0.80458578]
[1738275541505,0.27076604,678.96,678.78,0.80458578]
[1738275541709,0.27076604,678.96,678.79,0.80458578]
[1738275542009,0.27076604,678.96,678.73,0.786]
[1738275542209,0.27076604,678.96,678.74,0.80458221]
[1738275542509,0.27076604,678.96,678.75,0.80458221]
[1738275542709,0.27076604,678.96,678.76,0.80457466]
[1738275542908,0.27076604,678.96,678.77,0.80457466]
[1738275543110,0.27076604,678.96,678.73,0.786]
[1738275543111,0.27076604,678.96,678.78,0.80457407]
[1738275543309,1.1014699,678.97,678.79,0.80457407]
[1738275543509,0.2707709,678.96,678.73,0.786]
[1738275543710,0.2707709,678.96,678.74,0.80461447]
[1738275543911,0.2707709,678.96,678.75,0.80461447]
[1738275544112,0.2707709,678.96,678.76,0.80461447]
[1738275544410,0.2707709,678.96,678.77,0.80461447]
[1738275544711,0.2707709,678.96,678.78,0.80461447]
[1738275544913,1.10474179,678.8,678.73,0.786]
[1738275545107,1.10474179,678.8,678.74,0.80464312]
[1738275545312,1.10474179,678.8,678.75,0.80464312]
[1738275545513,1.10474179,678.8,678.76,0.80464312]
[1738275545713,1.10474179,678.8,678.77,0.80464312]
[1738275545913,1.10474179,678.8,678.78,0.80464312]
[1738275546213,1.10474179,678.8,678.79,0.80464312]
[1738275547014,1.10474179,678.8,678.79,0.80462309]
[1738275547615,1.10474179,678.81,678.79,0.80462309]
[1738275547807,1.10474179,678.81,678.71,0.85]
[1738275548111,1.10474179,678.81,678.72,0.8045271]
[1738275548309,1.10474179,678.81,678.73,0.8045271]
[1738275548510,1.10474179,678.81,678.74,0.8045271]
[1738275548710,1.10474179,678.81,678.75,0.8045271]
[1738275548912,1.10474179,678.81,678.76,0.8045271]
[1738275549112,1.10474179,678.81,678.77,0.8045271]
[1738275549313,1.10474179,678.81,678.78,0.8045271]
[1738275549512,1.10474179,678.81,678.71,0.85]
[1738275549714,1.10474179,678.81,678.72,0.80451786]
[1738275549913,1.10474179,678.81,678.73,0.80451786]
[1738275550215,1.10474179,678.81,678.74,0.80451786]
[1738275550512,1.10474179,678.8,678.75,0.80451786]
[1738275550714,1.10474179,678.8,678.76,0.80451786]
[1738275550912,1.10474179,678.8,678.77,0.80451786]
[1738275551114,1.10474179,678.8,678.78,0.80451786]
[1738275551313,1.10474179,678.8,678.79,0.80452213]
[1738275551717,1.10474179,678.8,678.79,0.80451671]
[1738275552915,1.10474179,678.8,678.71,0.85]
[1738275553115,1.10474179,678.8,678.72,0.80454093]
[1738275553315,1.10474179,678.8,678.73,0.80454093]
[1738275553515,1.10474179,678.8,678.74,0.80454093]
[1738275553711,1.10474179,678.8,678.75,0.80454093]
[1738275553916,1.10474179,678.8,678.71,0.85]
[1738275553917,1.10474179,678.8,678.76,0.80454093]
[1738275554113,1.10474179,678.8,678.77,0.80454093]
[1738275554314,1.10474179,678.8,678.78,0.80454093]
[1738275554515,1.10474179,678.8,678.71,0.85]
[1738275554717,1.10474179,678.82,678.72,0.80457389]
[1738275554918,1.10474179,678.82,678.73,0.80457389]
[1738275555217,1.10474179,678.82,678.74,0.80457389]
[1738275555517,1.10474179,678.82,678.75,0.80457389]
[1738275555716,1.10474179,678.82,678.76,0.80457389]
[1738275555916,1.10474179,678.82,678.77,0.80457389]
[1738275556217,1.10474179,678.82,678.78,0.80457389]
[1738275556419,1.10474179,678.82,678.71,0.85]
[1738275556618,1.10474179,678.82,678.72,0.80458752]
[1738275556916,1.10474179,678.82,678.73,0.80458752]
[1738275557118,1.10474179,678.82,678.74,0.80458752]
[1738275557310,1.10474179,678.82,678.75,0.80458752]
[1738275557514,1.10474179,678.83,678.76,0.80458752]
[1738275557714,1.10474179,678.83,678.77,0.80458752]
[1738275557915,1.10474179,678.83,678.78,0.80458752]
[1738275558115,1.10474179,678.83,678.71,0.85]
[1738275558312,1.10474179,678.83,678.72,0.80458093]
[1738275558513,1.10474179,678.83,678.73,0.80458093]
[1738275558715,1.10474179,678.83,678.74,0.80460526]
[1738275559015,1.10474179,678.83,678.71,0.85]
[1738275559219,1.10474179,678.83,678.72,0.80457876]
[1738275559821,1.10474179,678.83,678.73,0.80457876]
[1738275560325,1.10474179,678.83,678.71,0.85]
[1738275560526,0.77273939,679.22,678.71,0.85]
[1738275560527,1.10474179,678.85,678.71,0.85]
[1738275560825,1.10474179,678.85,678.72,0.80464217]
[1738275561025,1.10474179,678.85,678.73,0.80464217]
[1738275561225,1.10474179,678.85,678.74,0.80464217]
[1738275561418,1.10474179,678.85,678.75,0.80464217]
[1738275561622,1.10474179,678.85,678.76,0.80464217]
[1738275561820,1.10474179,678.85,678.77,0.80464217]
[1738275562022,1.10474179,678.85,678.71,0.85]
[1738275562225,1.10474179,678.85,678.72,0.80462842]
[1738275562527,1.10474179,678.85,678.73,0.80462842]
[1738275562725,1.10474179,678.85,678.74,0.80462842]
[1738275562926,1.10474179,678.85,678.75,0.80462842]
[1738275563122,1.10474179,678.85,678.76,0.80462842]
[1738275563322,1.10474179,678.85,678.77,0.80462842]
[1738275563523,1.10474179,678.85,678.78,0.80462842]
[1738275563727,1.10474179,678.85,678.71,0.85]
[1738275563923,1.10474179,678.85,678.72,0.80461419]
[1738275564124,1.10474179,678.85,678.73,0.80461419]
[1738275564330,1.10474179,678.85,678.74,0.80461419]
[1738275564531,1.10474179,678.85,678.75,0.80461419]
[1738275564830,1.10474179,678.85,678.76,0.80461419]
[1738275565030,1.10474179,678.85,678.77,0.80461419]
[1738275565330,1.10474179,678.85,678.78,0.80461419]
[1738275565530,1.10474179,678.85,678.79,0.80461419]
[1738275565731,1.10474179,678.85,678.71,0.85]
[1738275565929,1.10474179,678.85,678.72,0.80460393]
[1738275566129,1.10474179,678.85,678.73,0.80460393]
[1738275566328,1.10474179,678.85,678.74,0.80460393]
[1738275566528,1.10474179,678.85,678.75,0.80460393]
[1738275566831,1.10474179,678.85,678.76,0.80460393]
[1738275567031,1.10474179,678.85,678.77,0.80460393]
[1738275567331,1.10474179,678.85,678.78,0.80460393]
[1738275567532,1.10474179,678.85,678.71,0.85]
[1738275567729,1.10474179,678.85,678.72,0.80467116]
[1738275567930,1.10474179,678.83,678.73,0.80467116]
[1738275568130,1.10474179,678.83,678.74,0.80467116]
[1738275568328,1.10474179,678.83,678.75,0.80467116]
[1738275568526,1.10474179,678.83,678.76,0.80467116]
[1738275568730,1.10474179,678.83,678.77,0.80467116]
[1738275569030,1.10474179,678.83,678.78,0.80467116]
[1738275569230,1.10474179,678.83,678.71,0.85]
[1738275569426,1.10474179,678.83,678.72,0.80469355]
[1738275569634,1.10474179,678.83,678.73,0.80469355]
[1738275569829,1.10474179,678.83,678.74,0.80469355]
[1738275570030,1.10474179,678.83,678.75,0.80469355]
[1738275570229,1.10474179,678.83,678.76,0.80469355]
[1738275570433,1.10474179,678.83,678.77,0.80469355]
[1738275570628,1.10474179,678.83,678.78,0.80469355]
[1738275570830,1.10474179,678.81,678.71,0.85]
[1738275571032,1.10474179,678.81,678.72,0.80471387]
[1738275571235,1.10474179,678.81,678.73,0.80471387]
[1738275571438,1.10474179,678.81,678.74,0.80471387]
[1738275571637,1.10474179,678.81,678.75,0.80471387]
[1738275571840,1.10474179,678.81,678.76,0.80471387]
[1738275572035,1.10474179,678.81,678.77,0.80471387]
[1738275572240,1.10474179,678.81,678.78,0.80471387]
[1738275572441,1.10474179,678.81,678.72,0.863]
[1738275572741,1.10474179,678.81,678.73,0.80472033]
[1738275572941,1.10474179,678.81,678.72,0.863]
[1738275572942,1.10474179,678.81,678.74,0.80472033]
[1738275573135,1.10474179,678.81,678.75,0.80472033]
[1738275573342,1.10474179,678.81,678.76,0.80472033]
[1738275573636,1.10474179,678.81,678.77,0.80472033]
[1738275573843,1.10474179,678.81,678.78,0.80472033]
[1738275574044,1.10474179,678.81,678.72,0.863]
[1738275574341,1.10474179,678.81,678.73,0.80474893]
[1738275574538,1.10474179,678.81,678.74,0.80474893]
[1738275574735,1.10474179,678.81,678.75,0.80474893]
[1738275574938,1.10474179,678.81,678.76,0.80474893]
[1738275575134,1.10474179,678.81,678.77,0.80474893]
[1738275575338,1.10474179,678.81,678.78,0.80474893]
[1738275575543,1.10474179,678.81,678.72,0.863]
[1738275575743,1.10474179,678.81,678.73,0.80476018]
[1738275576042,1.10474179,678.81,678.74,0.80476018]
[1738275576242,1.10474179,678.81,678.75,0.80476018]
[1738275576443,1.10474179,678.81,678.76,0.80476018]
[1738275576643,1.10474179,678.81,678.77,0.80476018]
[1738275576842,1.10474179,678.81,678.72,0.863]
[1738275577042,1.10474179,678.81,678.73,0.80474355]
[1738275577243,1.10474179,678.81,678.74,0.80474355]
[1738275577443,1.10474179,678.81,678.75,0.80474355]
[1738275577644,1.10474179,678.81,678.76,0.80474355]
[1738275577843,1.10474179,678.81,678.77,0.80474355]
[1738275578044,1.10474179,678.81,678.72,0.863]
[1738275578340,1.10474179,678.94,678.73,0.8047278]
[1738275578548,1.10474179,678.94,678.74,0.8047278]
[1738275578844,1.10474179,678.94,678.75,0.8047278]
[1738275579143,1.10474179,678.94,678.76,0.8047278]
[1738275579338,1.10474179,678.94,678.77,0.80469878]
[1738275579537,1.10474179,678.94,678.78,0.80469453]
[1738275579742,1.10474179,678.94,678.79,0.80468058]
[1738275579939,1.10474179,678.94,678.72,0.863]
[1738275580140,1.10474179,678.94,678.73,0.80469612]
[1738275580339,1.10474179,678.94,678.74,0.80469612]
[1738275580539,1.10474179,678.94,678.72,0.863]
[1738275580540,1.10474179,678.94,678.75,0.80469612]
[1738275580742,1.1014699,679.2,678.76,0.80469612]
[1738275580743,1.10474179,678.93,678.76,0.80469612]
[1738275580944,1.10474179,678.93,678.72,0.863]
[1738275581144,1.10474179,678.93,678.73,0.80465608]
[1738275581344,1.10474179,678.93,678.74,0.80465608]
[1738275581545,1.10474179,678.93,678.75,0.80465608]
[1738275581845,1.10474179,678.93,678.76,0.80465608]
[1738275582045,1.10474179,678.93,678.77,0.80465608]
[1738275582246,1.10474179,678.93,678.78,0.80465608]
[1738275582442,1.10474179,678.93,678.72,0.863]
[1738275582644,1.10474179,678.93,678.73,0.80469008]
[1738275582844,1.10474179,678.93,678.74,0.80469008]
[1738275583043,1.10474179,678.93,678.72,0.863]
[1738275583250,0.27077526,678.92,678.73,0.80469688]
[1738275583548,0.27077526,678.92,678.74,0.80469688]
[1738275583749,0.27077526,678.92,678.75,0.80469688]
[1738275584048,0.27077526,678.92,678.76,0.80469688]
[1738275584246,1.10474179,678.94,678.77,0.80469688]
[1738275584247,0.27077526,678.93,678.77,0.80469688]
[1738275584449,0.27077526,678.93,678.78,0.80469688]
[1738275584648,0.27077526,678.93,678.72,0.863]
[1738275584849,0.27077526,678.93,678.73,0.80471334]
[1738275585049,0.27077526,678.93,678.74,0.80471334]
[1738275585250,0.27077526,678.93,678.75,0.80471334]
[1738275585453,0.27077526,678.93,678.76,0.80471334]
[1738275585749,0.27077526,678.93,678.77,0.80471334]
[1738275585949,0.27077526,678.93,678.78,0.80471334]
[1738275586150,0.27077526,678.93,678.72,0.863]
[1738275586350,0.27077526,678.93,678.73,0.80472864]
[1738275586550,0.27077526,678.93,678.74,0.80472864]
[1738275586752,0.27077526,678.93,678.75,0.80472864]
[1738275586951,0.27077526,678.93,678.76,0.80472864]
[1738275587250,0.27077526,678.93,678.72,0.863]
[1738275587251,1.10474179,678.79,678.77,0.80472864]
[1738275587444,1.10474179,678.79,678.72,0.863]
[1738275587445,1.10474179,678.79,678.78,0.80472864]
[1738275589955,1.1014699,678.97,678.78,0.80472864]
[1738275590155,0.2707746,678.96,678.72,0.863]
[1738275590357,0.2707746,678.96,678.73,0.80470484]
[1738275590559,0.2707746,678.96,678.74,0.80470484]
[1738275590756,0.2707746,678.96,678.75,0.80470484]
[1738275590957,0.2707746,678.96,678.76,0.80470484]
[1738275591153,0.2707746,678.96,678.77,0.80470484]
[1738275591357,0.2707746,678.96,678.78,0.80470484]
[1738275591559,0.2707746,678.96,678.72,0.863]
[1738275591753,0.2707746,678.96,678.73,0.80471266]
[1738275591955,0.2707746,678.96,678.74,0.80471266]
[1738275592149,0.2707746,678.96,678.72,0.863]
[1738275592150,0.2707746,678.96,678.75,0.80471266]
[1738275592357,0.2707746,678.96,678.76,0.80471266]
[1738275592558,1.1049578,678.78,678.77,0.80471266]
[1738275595864,1.1049578,678.78,678.77,0.80476464]
[1738275596362,1.1049578,678.78,678.77,0.8047757]
[1738275596762,1.1049578,678.78,678.72,0.863]
[1738275597063,1.1014699,678.96,678.73,0.80476989]
[1738275597361,0.2707767,678.95,678.74,0.80476989]
[1738275597557,0.2707767,678.95,678.72,0.863]
[1738275597558,1.1014699,678.96,678.75,0.80476989]
[1738275597762,0.27077646,678.95,678.76,0.80476989]
[1738275597962,0.27077646,678.95,678.72,0.863]
[1738275598160,0.27077646,678.95,678.73,0.80476956]
[1738275598357,0.27077646,678.95,678.74,0.80476956]
[1738275598664,0.27077646,678.95,678.75,0.80476956]
[1738275598962,0.27077646,678.95,678.76,0.80476956]
[1738275599162,0.27077646,678.95,678.72,0.863]
[1738275599462,0.27077646,678.95,678.73,0.8047763]
[1738275599664,0.27077646,678.95,678.74,0.8047763]
[1738275599863,1.1014699,678.94,678.75,0.8047763]
[1738275600062,0.27077646,678.93,678.76,0.8047763]
[1738275600258,0.27077646,678.93,678.72,0.863]
[1738275600460,0.27077646,678.93,678.73,0.80478914]
[1738275600657,0.27077646,678.93,678.74,0.80478914]
[1738275600862,0.27077646,678.93,678.72,0.863]
[1738275601162,0.27077646,678.93,678.73,0.80475954]
[1738275601363,1.1014699,678.94,678.74,0.80475954]
[1738275601562,1.1014699,678.94,678.75,0.80475954]
[1738275601759,1.1014699,678.94,678.72,0.863]
[1738275601959,1.1014699,678.94,678.73,0.8047499]
[1738275602156,1.1014699,678.94,678.74,0.8047499]
[1738275602360,1.1014699,678.94,678.75,0.8047499]
[1738275602556,1.1014699,678.94,678.02,1.10092913]
[1738275602557,1.10489124,678.75,678.02,1.10092913]
[1738275602756,1.10489124,678.75,678.03,0.80471254]
[1738275602964,1.10489124,678.75,678.04,0.80471254]
[1738275603265,1.10489124,678.75,678.05,0.80471254]
[1738275603463,1.10489124,678.75,678.06,0.80471254]
[1738275603663,1.10489124,678.75,678.07,0.80471254]
[1738275603866,1.10489124,678.75,678.08,0.80471155]
[1738275604066,1.10489124,678.75,678.09,0.80471155]
[1738275604265,1.10489124,678.75,678.1,0.80471155]
[1738275604465,1.10489124,678.75,678.11,0.80471155]
[1738275604670,1.10489124,678.75,678.12,0.80471155]
[1738275604965,1.10489124,678.75,678.13,0.80471155]
[1738275605166,1.10489124,678.75,678.05,1.174]
[1738275605167,1.10489124,678.75,678.14,0.80471155]
[1738275605364,1.10489124,678.75,678.15,0.80471155]
[1738275605561,1.10489124,678.75,678.16,0.80471155]
[1738275605764,1.10489124,678.75,678.17,0.80471155]
[1738275606065,1.10489124,678.93,678.18,0.80471155]
[1738275606359,1.10489124,678.93,678.19,0.80471155]
[1738275606560,1.10489124,678.93,678.2,0.80471155]
[1738275606764,1.10489124,678.93,678.21,0.80471155]
[1738275606966,1.10489124,678.93,678.22,0.80471155]
[1738275607266,1.10489124,678.93,678.23,0.80471155]
[1738275607466,1.10489124,678.93,678.24,0.80471155]
[1738275607667,1.10489124,678.93,678.25,0.80471155]
[1738275607867,1.10489124,678.93,678.26,0.80471155]
[1738275608064,1.10489124,678.93,678.27,0.80471155]
[1738275608264,1.10489124,678.93,678.28,0.80471155]
[1738275608466,1.10489124,678.93,678.29,0.80471155]
[1738275608662,1.10489124,678.93,678.3,0.80471155]
[1738275608866,1.10489124,678.93,678.05,1.174]
[1738275608867,1.10489124,678.93,678.31,0.80471155]
[1738275609064,1.10489124,678.93,678.32,0.80471155]
[1738275609264,1.10489124,678.93,678.33,0.80471155]
[1738275609569,1.10489124,678.93,678.34,0.80471155]
[1738275609769,1.10489124,678.93,678.35,0.80471155]
[1738275609969,1.10489124,678.93,678.36,0.80471155]
[1738275610169,1.10489124,678.93,678.37,0.80471155]
[1738275610370,1.10489124,678.93,678.38,0.80471155]
[1738275610564,1.10489124,678.93,678.39,0.80471155]
[1738275610767,1.10489124,678.93,678.4,0.80448405]
[1738275610968,1.10489124,678.93,678.41,0.80448405]
[1738275611167,1.10489124,678.93,678.42,0.80448405]
[1738275611369,1.10489124,678.93,678.43,0.80448405]
[1738275611566,1.10489124,678.9,678.44,0.80448405]
[1738275611872,1.10489124,678.9,678.45,0.80448405]
[1738275612069,1.10489124,678.9,678.46,0.80448405]
[1738275612273,1.10489124,678.9,678.47,0.80448405]
[1738275612469,1.10489124,678.9,678.05,1.174]
[1738275612470,1.10489124,678.9,678.48,0.80448405]
[1738275612669,1.10489124,678.9,678.49,0.80448405]
[1738275612874,1.10489124,678.9,678.5,0.80448405]
[1738275613073,1.10489124,678.9,678.51,0.80448405]
[1738275613274,1.10489124,678.9,678.52,0.80448405]
[1738275613475,1.10489124,678.9,678.53,0.80448405]
[1738275613676,1.10489124,678.9,678.54,0.80448405]
[1738275613880,1.10489124,678.9,678.55,0.80448405]
[1738275614079,1.10489124,678.9,678.56,0.80448405]
[1738275614280,1.10489124,678.9,678.57,0.80448405]
[1738275614479,1.10489124,678.9,678.05,1.174]
[1738275614681,1.10489124,678.94,678.06,0.80419108]
[1738275614876,1.10489124,678.94,678.07,0.80419108]
[1738275615075,1.10489124,678.94,678.08,0.80419108]
[1738275615276,1.10489124,678.94,678.09,0.80419108]
[1738275615480,1.10489124,678.94,678.1,0.80419108]
[1738275615784,1.10489124,678.94,678.11,0.80419108]
[1738275615981,1.10489124,678.94,678.12,0.80419108]
[1738275616184,1.10489124,678.94,678.13,0.80419108]
[1738275616482,1.10489124,678.94,678.14,0.80419108]
[1738275616782,1.10489124,678.94,678.05,1.174]
[1738275616783,1.10489124,678.94,678.15,0.80419108]
[1738275617082,0.27082871,678.93,678.16,0.80419108]
[1738275617279,0.27082871,678.93,678.17,0.80419108]
[1738275617484,0.27082871,678.93,678.18,0.80419108]